bitfinex/quotes_ETHUSD_20251012
["timestamp","ask_amount","ask_price","bid_price","bid_amount"]
[1760295522519,2.6528,4118.1,4117.7,2.42852387]
[1760295523520,0.6336,4118.2,4117.6,2.43058983]
[1760295523727,0.0992,4118.0,4117.6,2.43058983]
[1760295525626,5.26323218,4117.9,4117.6,2.43058983]
[1760295526638,5.38403218,4117.9,4117.6,2.43058983]
[1760295526932,5.38403218,4117.9,4117.6,0.002]
[1760295529016,5.38403218,4117.9,4117.6,2.430586]
[1760295532434,0.6336,4118.0,4117.9,2.42842225]
[1760295532639,7.91603218,4118.0,4117.9,2.42842225]
[1760295532937,1.92,4118.0,4117.9,2.42842225]
[1760295533120,0.001,4118.9,4118.0,2.42836328]
[1760295533322,0.001,4118.9,4118.8,2.42789161]
[1760295533713,0.001,4118.9,4118.8,2.87019161]
[1760295538347,0.2179,4120.3,4118.8,2.87019161]
[1760295538348,5.26423218,4120.3,4120.2,2.42706664]
[1760295538845,5.26423218,4120.3,4120.2,2.86936664]
[1760295538846,0.001,4120.3,4120.2,2.86936664]
[1760295539445,0.001,4120.3,4120.2,3.422018]
[1760295542426,0.001,4120.3,4120.2,3.542818]
[1760295545045,0.001,4120.3,4120.2,3.422018]
[1760295547457,0.001,4120.3,4120.2,8.68525018]
[1760295548139,0.001,4120.3,4120.2,3.422018]
[1760295553558,0.001,4120.3,4120.2,3.542818]
[1760295554966,0.001,4120.3,4120.2,2.54786664]
[1760295555384,7.18423218,4120.3,4120.2,2.54786664]
[1760295555667,1.921,4120.3,4120.2,2.42706664]
[1760295558155,2.42535974,4123.1,4121.0,2.42659548]
[1760295558463,0.3097,4122.8,4121.1,2.4265366]
[1760295558643,0.2096,4122.8,4121.1,4.13384017]
[1760295559250,2.1296,4122.8,4121.1,4.13384017]
[1760295559645,0.3108,4122.8,4121.1,4.13384017]
[1760295562259,0.6336,4122.7,4121.1,4.13384017]
[1760295563172,0.7348,4122.7,4121.1,4.13384017]
[1760295563339,0.1012,4122.5,4121.1,4.13384017]
[1760295565656,0.1012,4122.3,4121.1,4.13384017]
[1760295567567,0.1012,4122.3,4121.1,3.68084017]
[1760295567773,0.1012,4122.3,4121.1,4.13384017]
[1760295568144,0.6336,4122.7,4121.1,4.25464017]
[1760295568145,0.1208,4122.4,4121.1,4.25464017]
[1760295570078,15.70150048,4122.2,4121.1,0.1208]
[1760295570279,5.57959725,4121.1,4120.3,2.42695938]
[1760295570481,0.6336,4120.8,4119.4,2.42753799]
[1760295570776,2.5536,4120.3,4118.8,0.453]
[1760295570950,9.270149,4120.1,4118.8,0.453]
[1760295571149,15.70150048,4120.4,4118.9,2.42777567]
[1760295571150,2.5536,4119.7,4118.9,2.42777567]
[1760295571348,0.1189,4119.6,4119.0,2.4277606]
[1760295571758,0.6336,4119.5,4118.4,0.453]
[1760295571969,0.1189,4119.6,4118.4,2.42807628]
[1760295571970,15.70150048,4119.2,4118.4,2.42807628]
[1760295572475,15.80290048,4119.2,4118.4,2.42807628]
[1760295572665,15.80290048,4119.2,4118.5,2.42805426]
[1760295572987,1.92,4119.0,4118.5,2.42805426]
[1760295573486,2.0214,4119.0,4118.5,2.42805426]
[1760295573779,0.1014,4119.0,4118.4,2.42811506]
[1760295573987,0.1014,4119.0,4118.2,2.42823361]
[1760295574184,0.1014,4119.0,4118.5,2.42806574]
[1760295575181,1.92,4119.1,4118.6,2.42799414]
[1760295575382,0.1014,4119.4,4118.2,0.2293]
[1760295575607,0.6336,4119.4,4118.3,0.453]
[1760295575785,0.6336,4119.4,4118.7,2.42792583]
[1760295575978,0.6336,4119.4,4118.3,0.453]
[1760295576289,0.6336,4119.4,4118.8,2.42788561]
[1760295576990,0.30295571,4121.1,4118.9,0.453]
[1760295577286,2.29029,4120.9,4120.2,2.42702828]
[1760295577456,3.076395,4120.7,4120.0,2.42718411]
[1760295577657,0.2191,4121.0,4120.3,2.42697574]
[1760295577888,1.92,4120.6,4120.3,2.42697574]
[1760295578068,2.5536,4120.7,4120.3,2.42697574]
[1760295578271,0.6336,4120.7,4120.3,2.42697574]
[1760295578478,0.6336,4120.7,4120.3,2.42699281]
[1760295578664,0.6336,4120.9,4120.3,2.42699281]
[1760295578866,0.6336,4120.7,4120.3,2.42699281]
[1760295579158,0.6336,4120.7,4120.2,2.42705089]
[1760295579408,0.6336,4120.7,4119.0,2.42777373]
[1760295579409,0.6336,4120.7,4117.4,0.002]
[1760295579599,0.6336,4120.1,4118.5,0.453]
[1760295579804,0.2191,4120.0,4119.5,2.4274337]
[1760295580210,0.1208,4119.8,4119.5,2.4274337]
[1760295580392,0.1208,4119.8,4119.6,2.42740508]
[1760295581085,0.2191,4119.9,4119.6,2.42740508]
[1760295581480,0.2191,4119.9,4119.3,2.42757966]
[1760295581684,2.42759692,4119.3,4116.8,0.002]
[1760295581883,2.5536,4118.1,4117.3,2.42876378]
[1760295582212,1.92,4118.4,4116.8,0.002]
[1760295582395,0.6336,4117.9,4117.1,2.43084237]
[1760295582590,0.6336,4117.9,4117.3,2.42876426]
[1760295582811,0.099,4117.8,4117.3,2.42872121]
[1760295583419,0.099,4117.7,4117.3,2.42872121]
[1760295583915,0.099,4117.7,4117.4,2.43071349]
[1760295584420,0.6336,4117.9,4117.4,2.43071349]
[1760295584709,0.6336,4117.9,4117.4,2.43070054]
[1760295584919,0.099,4117.8,4117.4,0.002]
[1760295592329,0.1208,4117.9,4117.6,0.69887684]
[1760295592541,0.1208,4118.8,4117.7,0.5744]
[1760295592706,2.577161,4118.7,4118.0,2.42831194]
[1760295592907,0.1208,4118.8,4118.2,2.42824534]
[1760295593098,0.1208,4119.0,4118.4,2.42812742]
[1760295593546,2.167503,4118.9,4118.3,2.54892874]
[1760295594107,2.167503,4118.9,4118.4,2.42810905]
[1760295594506,2.167503,4118.9,4118.3,0.1208]
[1760295594723,1.92,4118.6,4118.1,2.42828639]
[1760295594928,1.92,4118.4,4118.1,0.1208]
[1760295595126,0.0992,4118.5,4118.1,0.1208]
[1760295595331,1.92,4118.3,4118.1,0.1208]
[1760295595721,0.0992,4118.5,4118.1,0.1208]
[1760295596033,0.0992,4118.4,4117.8,2.42845652]
[1760295596237,0.0992,4118.4,4117.8,0.1208]
[1760295596443,0.0992,4118.4,4117.8,2.54922871]
[1760295596619,0.1208,4118.5,4118.0,2.42831431]
[1760295597017,4.207755,4118.4,4117.8,0.1208]
[1760295598512,1.92,4118.3,4117.8,0.1208]
[1760295599137,1.92,4118.4,4117.8,0.1208]
[1760295599438,1.92,4118.2,4117.8,0.1208]
[1760295599640,0.0992,4118.4,4117.8,0.1208]
[1760295599937,6.346083,4118.3,4117.8,0.1208]
[1760295600140,0.0992,4118.3,4117.8,2.54927112]
[1760295600340,0.0992,4118.2,4117.8,2.54927048]
[1760295600839,0.0992,4118.2,4117.8,0.1208]
[1760295601045,0.0992,4118.2,4117.8,2.5492706]
[1760295601245,0.6336,4118.4,4117.8,0.1208]
[1760295601644,1.92,4118.2,4117.8,0.1208]
[1760295602019,4.78109,4118.3,4117.8,0.1208]
[1760295602217,0.6336,4118.4,4117.8,0.1208]
[1760295602519,0.6336,4118.4,4117.9,2.42841914]
[1760295603045,0.6336,4118.4,4117.8,2.54927558]
[1760295603224,0.7328,4118.4,4117.8,2.54927558]
[1760295603544,0.7328,4118.4,4117.8,0.1208]
[1760295603935,1.92,4118.2,4117.8,0.1208]
[1760295604136,2.6528,4118.2,4117.6,0.002]
[1760295604348,0.6336,4117.9,4117.6,0.002]
[1760295604555,0.6336,4117.7,4117.6,0.002]
[1760295604717,15.65352749,4118.5,4117.6,0.002]
[1760295605046,0.6336,4118.7,4118.0,2.42831523]
[1760295605246,0.6336,4118.7,4118.1,2.42829254]
[1760295605675,1.92,4118.3,4117.9,2.42837012]
[1760295605954,2.5536,4118.6,4117.9,2.42837012]
[1760295606118,0.6336,4118.6,4118.0,2.42835518]
[1760295606426,2.5536,4118.7,4118.0,2.42835518]
[1760295606628,0.6336,4118.5,4118.0,2.42835518]
[1760295606830,0.6336,4118.6,4117.9,2.42837896]
[1760295607020,0.6336,4118.6,4118.0,2.42834864]
[1760295607223,0.6336,4119.0,4118.3,2.42813726]
[1760295607441,2.5536,4119.0,4118.3,2.42813726]
[1760295607638,3.06137929,4119.0,4118.3,2.42813726]
[1760295607839,0.6336,4119.0,4118.4,2.42810976]
[1760295608240,0.6336,4118.8,4118.2,2.42824534]
[1760295608452,0.6336,4118.6,4118.3,2.42815646]
[1760295608865,0.6336,4118.9,4118.4,2.42811696]
[1760295609162,0.6336,4118.9,4118.3,2.42817132]
[1760295609477,0.6336,4118.9,4118.4,2.42812649]
[1760295609774,0.6336,4118.9,4118.3,2.42818319]
[1760295609937,0.6336,4118.9,4118.3,2.42814125]
[1760295610334,2.5536,4118.7,4117.6,0.002]
[1760295610571,0.6336,4118.7,4117.7,2.4285402]
[1760295610864,0.6336,4118.7,4117.6,0.69886989]
[1760295610865,3.06156499,4118.7,4117.6,2.67386382]
[1760295611091,2.0192,4118.6,4118.0,2.42836211]
[1760295611236,0.0992,4118.6,4118.0,2.42836211]
[1760295611437,0.7328,4118.6,4118.0,2.42836211]
[1760295612037,0.7328,4118.6,4118.1,2.42829978]
[1760295612242,0.6336,4118.6,4118.2,2.42823777]
[1760295612438,0.6336,4118.6,4118.0,2.42835974]
[1760295612739,0.6336,4118.6,4118.3,2.42817878]
[1760295613337,1.92,4119.2,4118.4,2.88171575]
[1760295613560,0.6336,4119.1,4118.6,2.42796977]
[1760295613744,0.0992,4119.4,4118.0,0.2343]
[1760295613745,0.7303526,4119.6,4118.7,0.4536]
[1760295614069,0.6336,4119.4,4118.8,2.42788653]
[1760295614249,0.7326,4119.4,4118.8,2.42788653]
[1760295614449,0.7326,4119.4,4118.7,2.42793197]
[1760295614670,1.92,4119.2,4118.7,2.54873197]
[1760295615168,1.92,4119.2,4118.8,2.42788525]
[1760295615361,0.7544,4119.4,4118.9,2.4278298]
[1760295615550,0.1208,4119.4,4118.9,2.4278298]
[1760295616070,1.92,4119.3,4118.9,2.4278298]
[1760295616274,3.839055,4119.2,4118.7,0.1208]
[1760295616568,1.92,4119.3,4118.8,2.4278519]
[1760295616864,1.92,4119.3,4118.9,2.42781739]
[1760295618140,1.92,4119.3,4118.9,0.49766077]
[1760295618340,1.92,4119.3,4119.2,2.42765585]
[1760295621256,1.92,4119.3,4119.1,2.42770173]
[1760295621554,1.92,4119.3,4118.7,0.1208]
[1760295621892,0.7544,4119.0,4118.5,2.42802034]
[1760295622055,0.7544,4119.0,4118.5,2.42803413]
[1760295622375,0.7544,4119.0,4118.3,2.54898311]
[1760295622590,0.7544,4119.0,4118.6,2.42800136]
[1760295623081,0.7544,4119.0,4118.5,2.42806322]
[1760295623470,0.7544,4119.0,4118.6,2.42799464]
[1760295623958,0.7544,4119.0,4118.5,2.42805112]
[1760295624891,1.92,4118.9,4118.3,0.1208]
[1760295625078,2.6744,4118.6,4118.2,2.42819086]
[1760295625253,0.0992,4118.5,4118.2,2.42819086]
[1760295625457,0.7544,4118.6,4118.2,2.42819086]
[1760295626157,0.8536,4118.6,4118.2,2.42819086]
[1760295626592,0.8536,4118.6,4118.3,2.42818251]
[1760295626964,0.7544,4118.6,4118.3,2.42818251]
[1760295628291,0.7544,4118.6,4118.2,2.42824016]
[1760295628463,4.735148,4119.8,4119.0,2.42771997]
[1760295628665,0.1208,4119.1,4119.0,2.42771997]
[1760295640401,0.086001,4119.1,4119.0,2.42771997]
[1760295642516,0.086001,4119.1,4119.0,2.42971997]
[1760295649812,0.086001,4119.1,4119.0,0.002]
[1760295650015,0.086001,4119.1,4119.0,2.42977373]
[1760295650182,2.5536,4119.0,4118.5,0.002]
[1760295650381,0.51530181,4119.1,4118.5,2.43006847]
[1760295650618,1.92,4118.9,4118.7,2.42791043]
[1760295650984,1.92,4118.9,4118.5,0.002]
[1760295651197,1.92,4118.9,4118.7,2.42793226]
[1760295651622,12.44461858,4118.8,4118.7,2.42793226]
[1760295655124,1.92,4118.7,4118.6,2.42800291]
[1760295658787,1.92,4118.7,4118.5,0.002]
[1760295659017,2.0192,4118.7,4118.5,2.43005842]
[1760295659321,2.0192,4118.7,4118.6,2.42800951]
[1760295660099,2.0192,4118.7,4118.5,2.43005178]
[1760295660302,7.18230929,4118.6,4118.5,0.002]
[1760295660498,7.18230929,4118.6,4118.5,2.43006847]
[1760295661289,1.92,4118.6,4118.5,2.43006847]
[1760295661501,5.26230929,4118.7,4118.6,2.42800951]
[1760295661704,5.26230929,4118.7,4118.6,2.88570951]
[1760295661921,7.18230929,4118.7,4118.6,2.88570951]
[1760295662121,7.18230929,4118.7,4118.6,2.42800951]
[1760295662445,7.18230929,4118.7,4118.6,2.88570951]
[1760295663234,7.18230929,4118.7,4118.6,3.00650951]
[1760295664832,7.18230929,4118.7,4118.6,2.54880951]
[1760295665399,7.18230929,4118.7,4118.6,3.00650951]
[1760295666629,7.18230929,4118.7,4118.6,0.1208]
[1760295667213,21.6068731,4118.7,4118.5,0.002]
[1760295667404,7.496242,4118.6,4118.5,0.002]
[1760295667734,8.45994281,4118.6,4118.5,0.002]
[1760295668431,17.93929181,4118.6,4118.5,0.002]
[1760295668637,17.55901481,4118.6,4118.5,0.002]
[1760295669436,0.6336,4118.4,4118.1,0.002]
[1760295669648,17.18686429,4118.2,4118.1,0.002]
[1760295669847,2.42842225,4117.9,4117.8,0.002]
[1760295670013,19.38644254,4117.9,4117.8,0.002]
[1760295670213,19.48564254,4117.9,4117.8,0.002]
[1760295670520,13.1863392,4117.7,4117.4,0.002]
[1760295670710,8.486762,4117.3,4117.2,0.002]
[1760295670913,10.22508229,4117.3,4117.2,0.002]
[1760295671138,7.91510929,4117.3,4117.2,0.002]
[1760295671339,9.99920429,4117.3,4117.2,0.002]
[1760295671542,10.01420429,4117.3,4117.2,0.002]
[1760295671739,2.5536,4117.3,4117.2,2.43083513]
[1760295672044,20.05002729,4117.3,4117.2,0.002]
[1760295672242,10.26820129,4117.3,4117.2,0.002]
[1760295672442,7.91510929,4117.3,4117.2,0.002]
[1760295672613,7.81590929,4117.3,4117.2,0.002]
[1760295673222,7.81590929,4117.3,4117.2,2.43083513]
[1760295674132,7.81590929,4117.3,4117.2,0.002]
[1760295674925,7.81590929,4117.3,4117.2,2.43083513]
[1760295677440,7.91510929,4117.3,4117.2,2.43083513]
[1760295677832,7.81590929,4117.3,4117.2,2.43083513]
[1760295679221,7.91510929,4117.3,4117.2,2.43083513]
[1760295680966,14.37938529,4117.3,4117.2,0.002]
[1760295681447,7.81590929,4117.3,4117.2,0.002]
[1760295682024,7.81590929,4117.3,4117.2,2.43083513]
[1760295683258,0.1208,4117.8,4117.2,0.002]
[1760295683451,5.26230929,4117.6,4117.2,0.4577]
[1760295683618,1.92,4117.5,4117.4,2.42871715]
[1760295684030,1.92,4117.5,4117.4,2.88441715]
[1760295686483,1.92,4117.5,4117.4,3.6590244]
[1760295687462,1.15978856,4119.3,4117.4,1.23030725]
[1760295687777,0.33010081,4119.6,4118.8,2.42785641]
[1760295687936,0.0992,4119.1,4118.9,2.42783267]
[1760295688142,0.6346,4119.0,4118.9,2.42783267]
[1760295688369,0.001,4119.0,4118.9,2.88353267]
[1760295688575,0.001,4119.0,4118.9,2.42783267]
[1760295688744,5.26330929,4119.0,4118.9,2.88353267]
[1760295689442,7.18330929,4119.0,4118.9,2.88353267]
[1760295689844,0.001,4119.0,4118.9,2.88353267]
[1760295690056,0.001,4119.0,4118.9,3.41467743]
[1760295693361,0.001,4119.0,4118.9,3.53547743]
[1760295694455,0.001,4119.0,4118.9,3.41467743]
[1760295702590,0.099,4121.9,4120.7,2.42677215]
[1760295702796,1.92,4120.9,4120.7,2.42677215]
[1760295703100,1.92,4120.9,4120.7,2.88247215]
[1760295703477,5.26230929,4121.0,4120.7,2.88247215]
[1760295704005,1.92,4120.9,4120.7,2.88247215]
[1760295704307,5.26230929,4121.0,4120.7,2.89157215]
[1760295704613,0.1208,4121.5,4120.7,3.56687408]
[1760295704813,5.26230929,4121.6,4120.7,3.44607408]
[1760295705112,1.92,4121.5,4120.7,3.44607408]
[1760295705314,5.26230929,4121.6,4120.7,3.44607408]
[1760295705818,1.92,4121.5,4120.7,3.44607408]
[1760295706172,5.26230929,4121.6,4120.7,3.44607408]
[1760295706574,1.92,4121.5,4120.7,3.44607408]
[1760295707638,1.92,4121.9,4120.7,3.44607408]
[1760295709605,6.07858975,4122.0,4120.7,3.44607408]
[1760295710536,1.92,4121.9,4120.7,3.44607408]
[1760295713011,0.001,4121.3,4120.7,3.44607408]
[1760295714661,0.001,4121.3,4120.7,3.56687408]
[1760295716526,6.07858975,4121.2,4120.7,3.56687408]
[1760295716722,0.001,4121.3,4120.7,3.56687408]
[1760295719260,6.07858975,4121.1,4120.7,2.98127408]
[1760295719428,6.07858975,4121.1,4120.7,2.42677215]
[1760295720369,6.40869056,4121.1,4120.7,2.42677215]
[1760295720538,6.07858975,4121.1,4120.7,2.42677215]
[1760295720946,0.001,4121.3,4120.7,2.42677215]
[1760295721160,0.001,4121.3,4120.7,2.85497215]
[1760295722667,0.001,4121.3,4120.7,2.42677215]
[1760295723673,0.001,4121.3,4120.7,2.85497215]
[1760295724473,0.001,4121.3,4120.7,2.42677215]
[1760295724677,0.001,4121.3,4120.7,3.34033408]
[1760295729063,0.001,4121.3,4120.7,3.46113408]
[1760295732288,0.001,4121.3,4120.7,9.41892383]
[1760295732596,0.001,4121.3,4120.7,12.09332383]
[1760295733196,0.001,4121.3,4120.7,12.82288428]
[1760295733766,0.001,4121.3,4120.7,6.74429453]
[1760295734691,0.001,4121.3,4120.7,12.70208428]
[1760295735482,0.001,4121.3,4120.7,11.97252383]
[1760295739806,0.001,4121.3,4120.7,5.46573408]
[1760295739985,0.001,4121.3,4120.7,3.34973408]
[1760295744714,0.001,4121.3,4120.7,3.47053408]
[1760295747320,0.001,4121.3,4120.7,2.98517215]
[1760295747723,0.001,4121.3,4120.7,2.54757215]
[1760295747942,1.921,4121.3,4120.7,2.54757215]
[1760295748290,6.07858975,4121.0,4120.7,2.54757215]
[1760295749032,2.5536,4120.9,4119.0,0.002]
[1760295749190,6.07858975,4120.6,4120.0,0.1208]
[1760295749390,6.17758975,4120.6,4120.4,2.4269022]
[1760295749615,8.09758975,4120.6,4120.5,2.42688994]
[1760295749819,1.92,4120.5,4120.0,0.1208]
[1760295750027,1.92,4120.5,4120.4,2.42694883]
[1760295750930,0.1208,4120.7,4120.6,2.42683104]
[1760295752100,0.1208,4120.7,4120.5,2.42687882]
[1760295752520,0.099,4120.6,4120.4,2.42694654]
[1760295752724,0.099,4120.5,4120.0,0.1208]
[1760295752932,0.099,4120.4,4120.3,2.42695976]
[1760295753631,0.1208,4120.7,4120.3,2.42695976]
[1760295753937,0.1208,4120.7,4120.0,0.1208]
[1760295754237,0.1208,4120.7,4120.6,2.42683104]
[1760295757841,2.0408,4120.7,4120.6,2.42683104]
[1760295758909,0.001,4120.8,4120.7,2.42677215]
[1760295761934,1.92,4120.7,4120.5,2.42683732]
[1760295762249,0.099,4120.6,4120.5,2.42683732]
[1760295762916,1.92,4120.7,4120.5,2.42683732]
[1760295763117,1.92,4120.7,4120.3,2.42696469]
[1760295763319,0.099,4120.6,4120.4,2.42690764]
[1760295763640,0.099,4120.6,4120.5,2.42688994]
[1760295764147,1.92,4120.7,4120.2,0.1208]
[1760295764347,1.92,4120.7,4120.6,2.42683104]
[1760295766355,2.019,4120.7,4120.2,0.1208]
[1760295766552,0.099,4120.6,4120.3,2.42695639]
[1760295766853,1.92,4120.7,4120.5,2.42687922]
[1760295767633,1.92,4120.7,4120.6,2.42683104]
[1760295767953,1.92,4120.7,4120.3,2.42700774]
[1760295768132,1.92,4120.7,4120.2,0.1208]
[1760295768331,1.92,4120.7,4120.3,0.4419]
[1760295768535,1.92,4120.7,4120.5,2.42688994]
[1760295768734,1.92,4120.7,4120.6,2.42683104]
[1760295768925,0.001,4120.8,4120.7,2.42677215]
[1760295769433,0.001,4120.8,4120.5,0.1208]
[1760295769637,5.25654196,4120.6,4120.4,2.42694346]
[1760295769842,0.001,4120.8,4119.7,2.42731272]
[1760295769843,5.35554196,4120.5,4120.3,2.42698842]
[1760295770054,5.25654196,4120.4,4120.3,2.42700774]
[1760295770261,5.35554196,4120.4,4120.3,2.42700774]
[1760295770448,5.25654196,4120.4,4120.3,2.42700774]
[1760295772056,5.25654196,4120.4,4120.3,2.86890774]
[1760295772245,0.1218,4120.8,4120.6,2.42683104]
[1760295772246,5.25654196,4120.7,4120.6,2.42683104]
[1760295772631,0.001,4120.8,4120.7,2.42677215]
[1760295775071,5.25754196,4120.8,4120.7,2.42677215]
[1760295777042,0.001,4120.8,4120.7,2.42677215]
[1760295777339,5.25754196,4120.8,4120.7,2.42677215]
[1760295778193,5.25754196,4120.8,4120.1,0.2203]
[1760295778343,5.25654196,4120.2,4120.1,2.42712555]
[1760295779074,5.25654196,4120.2,4119.8,0.002]
[1760295779389,5.25654196,4120.1,4119.8,0.002]
[1760295779682,5.25654196,4120.1,4120.0,2.42718446]
[1760295780253,0.099,4120.5,4119.8,0.002]
[1760295780454,5.25654196,4120.1,4120.0,2.42718446]
[1760295781982,5.25654196,4120.1,4119.9,2.42724337]
[1760295782184,5.25654196,4120.1,4120.0,2.42718446]
[1760295782488,0.1208,4120.3,4120.0,2.42718446]
[1760295782705,0.1208,4120.3,4120.2,2.42706664]
[1760295783868,1.92,4120.2,4119.8,0.002]
[1760295784064,5.25654196,4119.9,4119.8,2.42930229]
[1760295784776,0.001,4120.4,4119.9,2.42724337]
[1760295784992,0.001,4120.4,4120.3,2.42700774]
[1760295788563,0.001,4120.4,4119.8,0.1228]
[1760295788564,6.267691,4120.2,4119.8,0.002]
[1760295788790,0.1208,4120.3,4119.8,0.002]
[1760295789059,0.001,4120.4,4119.8,0.002]
[1760295789060,0.001,4120.4,4120.2,4.34706664]
[1760295789293,0.001,4120.4,4120.3,3.3256444]
[1760295799200,0.001,4120.4,4120.3,3.4464444]
[1760295799915,0.001,4120.4,4120.3,2.54780774]
[1760295800116,0.001,4120.4,4120.3,2.42700774]
[1760295801599,5.25754196,4120.4,4120.3,2.42700774]
[1760295802002,7.17754196,4120.4,4120.3,2.42700774]
[1760295804859,1.92,4120.3,4120.2,2.42706664]
[1760295807698,0.001,4120.9,4120.4,2.42694883]
[1760295807905,0.001,4120.9,4120.8,2.42671325]
[1760295808431,0.001,4120.9,4120.8,2.88531325]
[1760295810747,0.001,4120.9,4120.8,2.42671325]
[1760295811051,0.001,4120.9,4120.8,2.88531325]
[1760295811212,0.001,4120.9,4120.8,3.41652358]
[1760295813918,0.001,4120.9,4120.8,5.33652358]
[1760295814849,1e-08,4121.4,4121.3,2.42641884]
[1760295815209,1e-08,4121.4,4121.3,2.88501884]
[1760295817751,1e-08,4121.4,4121.3,3.00581884]
[1760295818057,1e-08,4121.4,4121.3,3.54905034]
[1760295820760,1e-08,4121.4,4121.3,2.54721884]
[1760295822732,1e-08,4121.4,4121.3,2.42641884]
[1760295823539,5.0199,4121.3,4121.1,0.1208]
[1760295823768,6.101411,4121.0,4119.8,0.4618]
[1760295823968,5.25654196,4120.5,4120.4,2.54774883]
[1760295824278,0.6336,4121.0,4120.9,2.42665437]
[1760295824480,7.81014196,4121.0,4120.9,2.42665437]
[1760295826047,1.92,4121.0,4120.9,2.42665437]
[1760295826262,1.92,4121.0,4120.9,3.00725437]
[1760295826482,1.92,4121.0,4120.9,2.54745437]
[1760295826977,1.92,4120.9,4119.8,0.4618]
[1760295827176,7.17654196,4120.8,4120.7,2.42677215]
[1760295828369,0.63360001,4121.4,4120.7,2.42677215]
[1760295828690,6.271717,4121.3,4121.2,2.42647772]
[1760295829052,5.830717,4121.3,4121.2,2.42647772]
[1760295829252,2.6744,4121.3,4121.2,2.42647772]
[1760295829464,2.7734,4121.3,4121.2,2.42647772]
[1760295829863,8.02994196,4121.3,4121.2,2.42647772]
[1760295830064,2.7734,4121.3,4121.2,2.42647772]
[1760295830277,8.02994196,4121.3,4121.2,2.42647772]
[1760295830951,11.81707196,4121.3,4121.2,2.42647772]
[1760295831577,6.56053,4121.3,4121.2,2.42647772]
[1760295833079,2.7734,4121.3,4121.2,2.42647772]
[1760295833574,2.0408,4121.3,4121.2,2.42647772]
[1760295833776,1e-08,4121.4,4121.3,2.42641884]
[1760295833977,1e-08,4121.4,4121.3,2.88871884]
[1760295837007,1e-08,4121.4,4121.3,2.42641884]
[1760295841003,1e-08,4121.4,4121.3,2.88871884]
[1760295843794,1e-08,4121.4,4121.3,3.00951884]
[1760295843989,1e-08,4121.4,4121.3,3.79577516]
[1760295845127,1e-08,4121.4,4121.3,3.33347516]
[1760295845282,1e-08,4121.4,4121.3,3.79577516]
[1760295848220,1e-08,4121.4,4121.3,2.54721884]
[1760295849652,1e-08,4121.4,4121.3,3.00951884]
[1760295851235,1e-08,4121.4,4121.3,2.54721884]
[1760295854357,1e-08,4121.4,4121.3,3.00951884]
[1760295854657,1e-08,4121.4,4121.3,2.54721884]
[1760295855658,1e-08,4121.4,4121.3,3.00951884]
[1760295855851,1e-08,4121.4,4121.3,2.54721884]
[1760295856833,1e-08,4121.4,4121.3,3.00951884]
[1760295858146,1e-08,4121.4,4121.3,2.54721884]
[1760295858353,1e-08,4121.4,4121.1,0.002]
[1760295858539,17.6190586,4121.2,4121.1,2.4285366]
[1760295858748,15.4136756,4121.2,4121.1,0.002]
[1760295859451,18.6580696,4121.2,4121.1,0.002]
[1760295860044,18.6580696,4121.2,4121.1,2.4285366]
[1760295860565,21.6426856,4121.2,4121.1,2.4285366]
[1760295861294,21.6426856,4121.2,4121.1,0.002]
[1760295861469,22.8797626,4121.2,4121.1,0.002]
[1760295861671,23.5133626,4121.2,4121.1,0.002]
[1760295862260,23.0773296,4121.2,4121.1,0.002]
[1760295862491,8.7334086,4121.2,4121.1,0.002]
[1760295862800,22.0368956,4121.2,4121.1,0.002]
[1760295863670,28.9366676,4121.2,4121.1,0.002]
[1760295864075,26.5062566,4121.2,4121.1,0.002]
[1760295864583,28.9365936,4121.2,4121.1,0.002]
[1760295864783,25.8319996,4121.2,4121.1,0.002]
[1760295865360,17.8736396,4121.2,4121.1,0.002]
[1760295865560,8.6344086,4121.2,4121.1,0.002]
[1760295865795,11.1467906,4121.2,4121.1,0.002]
[1760295866194,10.7812606,4121.2,4121.1,0.002]
[1760295866796,11.4047586,4121.2,4121.1,0.002]
[1760295867793,19.8742706,4121.2,4121.1,0.002]
[1760295868663,21.7509756,4121.2,4121.1,0.002]
[1760295868873,17.2172196,4121.2,4121.1,0.002]
[1760295869803,21.8607356,4121.2,4121.1,0.002]
[1760295870527,16.3302656,4121.2,4121.1,0.002]
[1760295870680,8.7334086,4121.2,4121.1,0.002]
[1760295871013,15.0503926,4121.2,4121.1,0.002]
[1760295871179,11.0688926,4121.2,4121.1,0.002]
[1760295871900,11.0131756,4121.2,4121.1,0.002]
[1760295873010,13.3656836,4121.2,4121.1,0.002]
[1760295873879,13.3656836,4121.2,4121.1,2.4285366]
[1760295873880,2.5536,4121.2,4121.1,2.4285366]
[1760295874123,1.92,4121.2,4121.1,2.4285366]
[1760295874306,2.5536,4121.2,4121.1,2.4285366]
[1760295875719,5.784579,4121.2,4121.1,2.4285366]
[1760295876120,5.144968,4121.2,4121.1,2.4285366]
[1760295876699,6.002968,4121.2,4121.1,2.4285366]
[1760295876904,5.144968,4121.2,4121.1,2.4285366]
[1760295877727,5.698968,4121.2,4121.1,2.4285366]
[1760295878110,1e-08,4121.4,4121.3,2.42641884]
[1760295882836,1e-08,4121.4,4121.3,2.87551884]
[1760295883140,1e-08,4121.4,4121.3,2.42641884]
[1760295883326,1e-08,4121.4,4121.3,2.99631884]
[1760295889360,1e-08,4121.4,4121.3,2.99181884]
[1760295889566,1e-08,4121.4,4121.3,3.53385438]
[1760295895548,1e-08,4121.4,4121.3,3.08925438]
[1760295896258,1e-08,4121.4,4121.3,3.53385438]
[1760295897772,1e-08,4121.4,4121.3,3.08925438]
[1760295898158,1e-08,4121.4,4121.3,3.53385438]
[1760295903173,1e-08,4121.4,4121.3,3.08925438]
[1760295903495,1e-08,4121.4,4121.3,3.53385438]
[1760295905111,1e-08,4121.4,4121.3,3.08925438]
[1760295905500,1e-08,4121.4,4121.3,3.53385438]
[1760295905702,1e-08,4121.4,4121.3,3.53585438]